Cogmind - Beta 14 @@@ ROGUE MODE // 2025.02.28 @ 10:57:32 Player: Bbenedict8 Result: Destroyed by VH-EDD(R) with Subdweller Machine Gun Performance ------------- Evolutions (0) 0 Regions Visited (2) 400 Robots Destroyed (26) 130 Value Destroyed (439) 439 Prototype IDs (0) 0 Alien Tech Used (0) 0 Bonus (8) 8 TOTAL SCORE: 977 Bonus ------- High Alert Combat Kills 8 Cogmind --------- Core Integrity 0/250 Matter 78/300 Energy 100/100 System Corruption 0% Temperature Cool (0) Movement Core (200) Ox3 Location -10/Subcaves Parts ------- > --- POWER (1) -------- (None) > --- PROPULSION (2) --- (None) > --- UTILITY (2) ------ Medium Storage Unit > --- WEAPON (2) ------- (None) > --- INVENTORY (10) --- Medium Storage Unit Visual Processing Unit Hacking Suite Medium Laser Small Laser Grenade Launcher Grenade Launcher Grenade Launcher Mining Laser Peak State ------------ > --- POWER ------------ Light Ion Engine > --- PROPULSION ------- Light Treads Light Treads > --- UTILITY ---------- Medium Storage Unit Improved Terrain Scanner > --- WEAPON ----------- Light Assault Rifle Grenade Launcher > --- INVENTORY -------- Light Ion Engine Medium Storage Unit Visual Processing Unit Hacking Suite Medium Laser Small Laser Grenade Launcher Grenade Launcher Mining Laser [Rating: 10] Favorites ----------- Power Light Ion Engine Engine Light Ion Engine Propulsion Light Treads Treads Light Treads Utility Improved Terrain Scanner Device Improved Terrain Scanner Storage Medium Storage Unit Weapon Grenade Launcher Energy Gun Small Laser Ballistic Gun Assault Rifle Launcher Grenade Launcher Build | -11 -10 -10 ------- Run | Yrd Mat Sub Slots Evolved . | . . . Power . | . . . Propulsion . | . . . Utility . | . . . Weapon . | . . . Parts Attached 13 | 7 5 1 Power 2 | 1 . 1 Engine 2 | 1 . 1 Core . | . . . Reactor . | . . . Propulsion 3 | 2 1 . Treads 3 | 2 1 . Leg . | . . . Wheel . | . . . Hover . | . . . Flight . | . . . Utility 3 | 2 1 . Device 1 | 1 . . Storage 2 | 1 1 . Processor . | . . . Hackware . | . . . Protection . | . . . Artifact . | . . . Weapon 5 | 2 3 . Energy Gun 2 | 2 . . Energy Cannon . | . . . Ballistic Gun 2 | . 2 . Ballistic Cannon . | . . . Launcher 1 | . 1 . Special Weapon . | . . . Impact Weapon . | . . . Slashing Weapon . | . . . Piercing Weapon . | . . . Special Melee Weapon . | . . . Unidentified Prototypes . | . . . Parts Lost 7 | . . 7 Power 2 | . . 2 Propulsion 2 | . . 2 Utility 1 | . . 1 Weapon 2 | . . 2 Highest Loss Streak 7 | . . 7 To Critical Strikes . | . . . Average Slot Usage (%) 96 | . 97 83 Engine 13 | . 14 10 Treads 27 | . 27 23 Device 13 | . 14 9 Storage 14 | . 14 14 Energy Gun 2 | . 2 . Ballistic Gun 11 | . 11 14 Launcher 12 | . 12 10 Peak Build Rating 10 | 8 10 10 Average Rating 8 | 4 9 8 On Entrance 6 | . 8 10 Naked Turns . | . . . Heaviest Build 19 | 10 19 19 Greatest Support 40 | 40 40 40 Greatest Overweight (x) 3 | . . 3 Average Overweight (x) . | . . . Largest Inventory Capacity 10 | 8 10 10 Average Capacity 9 | 7 9 10 Most Carried 10 | 4 10 10 Average Carried 7 | 1 8 9 Final Capacity 10 | 8 10 10 Final Carried 10 | 3 10 9 Class Distribution -------------------- 100% | Mutant Dominant Class ---------------- Mutant | -10/Materials Mutant | -10/Subcaves Resources | -11 -10 -10 ----------- Run | Yrd Mat Sub Matter Collected 344 | 270 74 . Remotely . | . . . Salvage Created 364 | 125 239 . Parts 50 | 7 43 . Haulers Intercepted . | . . . Recyclers Shooed . | . . . Parts Field Recycled . | . . . Retrieved Matter . | . . . Parts Self-Destructed . | . . . Prevented . | . . . Kills | -11 -10 -10 ------- Run | Yrd Mat Sub Combat Hostiles Destroyed 13 | . 13 . AOE 13 | . 13 . Classes Destroyed 8 | 3 5 . Worker 4 | 1 3 . Builder 1 | . 1 . Tunneler 2 | 2 . . Recycler 1 | 1 . . Operator 2 | . 2 . Watcher 3 | . 3 . Swarmer 8 | . 8 . Grunt 5 | . 5 . Best Kill Streak 11 | 2 11 . Combat Bots Only 6 | . 6 . Max Kills in Single Turn 3 | 1 3 . Gunslinging . | . . . Exploded 2 | . 2 . Melee . | . . . Uniques/NPCs Destroyed . | . . . Combat | -11 -10 -10 -------- Run | Yrd Mat Sub Hostile Shots Fired 71 | . 34 37 Missed 14 | . 10 4 Damage Taken 1040 | . 376 664 Core 264 | . 76 188 Absorbed by Shields . | . . . Regen/Repaired (Parts) 66 | . 66 . Core Remaining (%) 100 | 100 . . Volleys Fired 46 | 16 30 . Largest 2 | 1 2 . Hottest 70 | 40 70 . Shots Fired 75 | 16 59 . Gun 46 | 16 30 . Cannon . | . . . Launcher 29 | . 29 . Special . | . . . Kinetic 22 | . 22 . Thermal 24 | 16 8 . Explosive 29 | . 29 . Electromagnetic . | . . . Robot Hit Streak 10 | 10 4 . Robot Miss Streak 3 | 2 3 . Penetration Max . | . . . Secondary Targets . | . . . Shots Hit Robots 19 | 13 6 . Core Hits 33 | 5 28 . Critical Kills . | . . . Critical Parts Destroyed . | . . . Critical Strikes . | . . . Melee Attacks . | . . . Impact . | . . . Slashing . | . . . Piercing . | . . . Sneak Attacks . | . . . Combat Hostiles . | . . . Follow-up Attacks . | . . . Damage Inflicted 1713 | 148 1547 18 Guns 178 | 148 30 . Cannons . | . . . Explosions 1510 | . 1510 . Melee . | . . . Ramming 25 | . 7 18 Kinetic 18 | . 18 . Thermal 319 | 148 171 . Explosive 1281 | . 1281 . Electromagnetic 70 | . 70 . Impact . | . . . Slashing . | . . . Piercing . | . . . Highest Corruption . | . . . Average Corruption . | . . . Corruption Purged . | . . . Corruption Blocked . | . . . Overload Shots . | . . . Overflow Damage 225 | . 225 . Projectiles . | . . . Explosions 225 | . 225 . Melee . | . . . Knockbacks 1 | . . 1 Impact 1 | . . 1 Kinetic . | . . . Secondary . | . . . Self-Inflicted Damage 118 | . 117 1 Shots 5 | . 5 . Rammed 17 | . 5 12 Targets Rammed 17 | . 5 12 Kicked . | . . . Crushed . | . . . Highest Temperature 45 | . 45 . Average Temperature 14 | . 14 . Received Heat Transfer 138 | . 42 96 Siege Activations . | . . . Robots Corrupted . | . . . Combat Hostiles . | . . . Parts Fried . | . . . Impact Corruptions . | . . . Robots Melted . | . . . Combat Hostiles . | . . . Parts Melted . | . . . Heat Transferred 450 | 325 125 . Parts Sabotaged . | . . . Parts Stolen . | . . . Parts Stripped . | . . . Power Chain Reactions . | . . . Alert | -11 -10 -10 ------- Run | Yrd Mat Sub Peak Influence 431 | 20 431 . Initial 13 | . 13 . Average 242 | 5 280 . Maximum Alert Level 2 | . 2 . Low Security (%) 29 | 100 18 . Level 1 45 | . 53 . Level 2 24 | . 28 . Level 3 . | . . . Level 4 . | . . . Level 5 . | . . . High Security . | . . . Max Security . | . . . Squads Dispatched 4 | . 4 . Investigation 3 | . 3 . Extermination . | . . . Reinforcement 1 | . 1 . Assault . | . . . Garrison . | . . . Intercept . | . . . Searches Triggered . | . . . Construction Impeded . | . . . Haulers Reinforced . | . . . Active Scanning Responses . | . . . Cargo Convoy Interrupts . | . . . Stealth | -11 -10 -10 --------- Run | Yrd Mat Sub Distress Signals 1 | . 1 . Communications Jammed . | . . . Distress Signals . | . . . Times Spotted 23 | . 21 2 Peak Tracking Total 7 | . 7 2 Tactical Retreats . | . . . Traps | -11 -10 -10 ------- Run | Yrd Mat Sub Traps Triggered 2 | . 2 . Indirectly . | . . . Trap Hack Attempts . | . . . Triggered . | . . . Disarmed . | . . . Reprogrammed . | . . . Reused . | . . . Traps Extracted . | . . . Installed . | . . . Triggered . | . . . Machines | -11 -10 -10 ---------- Run | Yrd Mat Sub Machines Disabled 8 | . 8 . Max in Single Turn 4 | . 4 . Machines Repaired . | . . . Machines Dismantled . | . . . Machines Sabotaged . | . . . Overloaded Fab Kills . | . . . Hacking | -11 -10 -10 --------- Run | Yrd Mat Sub Machines Accessed 7 | . 7 . Terminals 6 | . 6 . Fabricators . | . . . Repair Stations 1 | . 1 . Recycling Units . | . . . Scanalyzers . | . . . Garrison Access . | . . . Total Hacks 17 | . 17 . Successful 5 | . 5 . Failed 12 | . 12 . Catastrophic 3 | . 3 . Database Lockouts . | . . . Manual 9 | . 9 . Terminals 15 | . 15 . Fabricators . | . . . Repair Stations 2 | . 2 . Recycling Units . | . . . Scanalyzers . | . . . Garrison Access . | . . . Terminal Hacks 3 | . 3 . Branch Access Points 1 | . 1 . Hauler Manifests 1 | . 1 . Zone Layout 1 | . 1 . Fabricator Hacks . | . . . Repair Station Hacks 2 | . 2 . Scan Component 1 | . 1 . Repair 1 | . 1 . Recycling Unit Hacks . | . . . Scanalyzer . | . . . Garrison Access Hacks . | . . . Unauthorized Hacks . | . . . Terminals . | . . . Fabricators . | . . . Repair Stations . | . . . Recycling Units . | . . . Scanalyzers . | . . . Garrison Access . | . . . Data Cores Recovered 1 | . 1 . Used 1 | . 1 . Hacking Detections 7 | . 7 . Full Trace Events 3 | . 3 . Feedback Events . | . . . Feedback Blocked . | . . . Robot Schematics Acquired . | . . . Robots Built . | . . . Authchips . | . . . Time . | . . . Total Robot Build Rating . | . . . Part Schematics Acquired . | . . . Parts Built . | . . . Authchips . | . . . Time . | . . . Total Part Build Rating . | . . . Parts Repaired 1 | . 1 . Time 26 | . 26 . Parts Recycled . | . . . Recycled Matter . | . . . Retrieved Matter . | . . . Retrieved Components . | . . . Parts Scanalyzed . | . . . Part Schematics Acquired . | . . . Parts Damaged . | . . . Bothacking | -11 -10 -10 ------------ Run | Yrd Mat Sub Used RIF Installer . | . . . Robots Hacked . | . . . Non-combat . | . . . Combat . | . . . Robot Hacks Applied . | . . . Relay Couplers Released . | . . . Fabnet Peak Effective % . | . . . Robots Rewired . | . . . Allies Hacked . | . . . Hacks Repelled . | . . . Allies | -11 -10 -10 -------- Run | Yrd Mat Sub Total Allies . | . . . Largest Group . | . . . Highest-Rated Group . | . . . Highest-Rated Ally . | . . . Total Orders . | . . . Ally Attacks . | . . . Total Damage . | . . . Kills . | . . . Allies Corrupted . | . . . Allies Melted . | . . . Intel | -11 -10 -10 ------- Run | Yrd Mat Sub Robot Analysis Total . | . . . Derelict Logs Recovered . | . . . Drone Launches . | . . . Drone Recoveries . | . . . Exploration | -11 -10 -10 ------------- Run | Yrd Mat Sub Turns Passed 1443 | 189 1167 87 Spaces Moved 779 | 93 645 41 Core 6 | 5 . 1 Treads 773 | 88 645 40 Legs . | . . . Wheels . | . . . Hover . | . . . Flight . | . . . Fastest Speed 50 | 50 160 160 Average Speed 159 | 154 160 160 Slowest Speed 200 | 160 160 200 Overloaded Moves . | . . . Propulsion Burnouts . | . . . Robots Hopped . | . . . Cave-ins Triggered . | . . . Exploration Rate (%) 32 | 4 91 3 Regions Visited 2 Branch Regions 1 Pre-discovered Areas . | . . . Known Exits Taken . | . . . Unknown Exits Taken 2 | 1 1 . Scrap Searched . | . . . Spaces Dug . | . . . Terrain Destroyed 182 | . 182 . Melee . | . . . Projectile . | . . . AOE 182 | . 182 . Terrain Rammed . | . . . Walls Destroyed . | . . . Machines Disabled . | . . . Actions | -11 -10 -10 --------- Run | Yrd Mat Sub Total 894 | 120 720 54 Wait 26 | . 26 . Move 777 | 92 644 41 Hop . | . . . Pick Up 12 | 4 8 . Fast Attach 8 | 6 2 . Attach 3 | 1 1 1 Detach . | . . . Swap 2 | . 2 . Drop 3 | 1 2 . Fire 46 | 16 30 . Melee . | . . . Ram 3 | . . 3 Kick . | . . . Crush 14 | . 5 9 Escape Stasis . | . . . Rewire . | . . . Trap . | . . . Miscellaneous . | . . . Route ------- -11/Scrapyard -10/Materials (discovered 6 exits: [*Mat x3] / *Min x2 / [*Sub]) -10/Subcaves History --------- Turn | Location | Event 58 | -11/Scrapyard | Discovered new exit (range 16) 190 | -11/Scrapyard | Entered Materials 316 | -10/Materials | Build established: Mutant 446 | -10/Materials | Discovered new exit (range 12) 582 | -10/Materials | Discovered new exit (range 19) 708 | -10/Materials | Discovered new exit (range 13) 743 | -10/Materials | Repaired Lgt. Treads 942 | -10/Materials | Discovered new exit (range 7) 1281 | -10/Materials | Identified exit to Mines 1322 | -10/Materials | Discovered new exit (range 9) 1357 | -10/Materials | Entered Subcaves 1392 | -10/Subcaves | Ambushed by Subdwellers from Twisted Machinery 1427 | -10/Subcaves | Core integrity fell below 50% 1435 | -10/Subcaves | Core integrity fell below 20% 1444 | -10/Subcaves | Destroyed by VH-EDD(R) with Subdweller Machine Gun Last Messages --------------- LOCATION=UNKNOWN AMBIENT_HEAT=-10 GOAL=ESCAPE 01409_ Lgt. Ion Engine destroyed. 01413_ Imp. Terrain Scanner destroyed. 01414_ Slammed into IR-H50(R). 01422_ Grenade Launcher destroyed. 01424_ Lgt. Treads destroyed. 01426_ Slammed into VH-EDD(R). 01430_ Slammed into IR-H50(R). 01434_ IR-H50(R) knocked back. 01435_ Slammed into IR-H50(R). 01436_ Lgt. Treads destroyed. 01437_ Slammed into IR-H50(R). 01437_ Destabilizing: System interference. 01437_ Assault Rifle temporarily disabled. 01437_ Lgt. Ion Engine destroyed. 01439_ Slammed into IR-H50(R). 01441_ Assault Rifle destroyed. 01441_ Slammed into IR-H50(R). Map ----- +----------------------------------------------------+ | ?????????????????????????????????????????????????? | | ?????????????????????????????????????????????????? | | ?????????????????????????????????????????????????? | | ?????????????????????????????????????????????????? | | ?????????????????????????????????????????????????? | | ?????????????????????????????????????????????????? | | ?????????????????????????????????????????????????? | | ?????????????????????????????????????????????????? | | ?????????????????????????????????????????????????? | | ?????????????????????????????????????????????????? | | ????????????????????????? ???????????????????????? | | ?????????????????????? ???#??????????????????????? | | ???????????????????????????????#???#?? ??????????? | | ????????????????????" ?" ????????????????????????? | | ????????????????????"""""####????????????????????? | | ?????????????????????#""""""##?#?????????????????? | | ??????????????# ##" """""##??????????????????? | | ???????????????# """ "" """#??????????????????? | | ???????????????# " #???????????????????? | | ????????????????# ##??????????????????? | | ?????????????????# ### ##??????????#??????? | | ?????????????????## ?? ??## ##?#??????????????? | | ?????????##???????? ?????## "##??????????#????? | | ?????????? ???????? ??#??## "" #???????#??##???? | | ??????????? ????????? #### R ##????? #???? | | ???????? ??? ?????#### ##@ ## #???? | | ??????????? ???## # ## R ## #????? | | ?????????????# ??# #### #?????? | | ?????????????# ### ##?##### ## #?????? | | ??????????????# # #???????##?????????? | | ????????????### #### ##??????????????????? | | ????????????# # #????#??????????????? | | ????????????# ##???????????????????? | | ????????????### ## #????????????????????? | | ??????????????## # #####????????????????????? | | ???????????????##########????????????????????????? | | ????????????????????????????????????????#????????? | | ???????????????#?????????????????????????????????? | | ????????????#??????????????#?#???????????????????? | | ?????????????????????????#???????#???????????????? | | ???????????????????????????#?#?????#?????????????? | | ?????????????????????????????????????????????????? | | ?????????????????????????????????????????????????? | | ?????????????????????????????????????????????????? | | ?????????????????????????????????????????????????? | | ?????????????????????????????????????????????????? | | ???????????????????#??#??????????????????????????? | | ????????????????????#????????????????????????????? | | ?????????????????????????????????????????????????? | | ?????????????????????????????????????????????????? | +----------------------------------------------------+ Best States ------------- Heat Dissipation 25 Energy Generation 10 Energy Capacity 125 Matter Stores 300 Matter Capacity 300 Sight Range 16 Terrain Scan Range 16 Terrain Scan Density 10 Evasion (%) 40 Recoil Reduction 2 Item Schematics ----------------- None Robot Schematics ------------------ None Fabricated ------------ Nothing Alien Tech Used ----------------- None Achievements -------------- Dynamic Key Challenges ------------ None Game ------ Seed ReflectiveActiveDoublenader Manual? 0 Play Time 00:18:41 Cumulative 14.8 hours Start 2025.02.27 @ 21:08:31 End 2025.02.28 @ 10:57:32 Sessions 2 Manual Loads 0 Difficulty Rogue Special Mode None Game No. 16 Rogue 14 Adventurer 2 Explorer 0 Win Type - Total 0 Types 0/0/0/0/0/0/0/0/0 Lore% 9 Gallery% 19 Achievement% 20 Wizard Run 0 Options --------- Layout 2 ASCII 0 Keyboard 0 Movement Mouse Keybinds 0 Fullscreen 1 Font 32/SmallcapsGlow Map View 50x44 Zoom Use 0% Tactical HUD 1 Map Filters NONE Filters NONE Steam 1 RUN: d72b65fb-59d7-4691-8f14-c7d0f9b1cff2